[Event "SWE-ch 2018"]
[Site "Ronneby"]
[Date "2018.07.03"]
[Round "4"]
[White "Smith, Axel"]
[Black "Hillarp Persson, Tiger"]
[Result "1/2-1/2"]
[ECO "B06"]
[WhiteElo "2491"]
[BlackElo "2534"]
[Annotator "ChessBase"]
[PlyCount "102"]
[EventDate "2018.06.30"]
[EventType "tourn"]
[EventCountry "SWE"]
[SourceTitle "playchess.com"]
[Source "ChessBase"]
[SourceQuality "1"]
[TimeControl "40/5400+30:1800+30"]

1. d4 {[%emt 0:00:00]} g6 {[%emt 0:00:00]} 2. e4 {[%emt 0:00:00]} Bg7 {[%emt 0:00:00]} 3. Nf3 {[%emt 0:00:00]} d6 {[%emt 0:00:00]} 4. Bc4 {[%emt 0:00:00]} Nf6 {[%emt 0:00:05]} 5. Qe2 {[%emt 0:00:56]} O-O {[%emt 0:00:12]} 6. e5 {[%emt 0:00:36]} dxe5 {[%emt 0:01:22]} 7. dxe5 {[%emt 0:00:33]} Nd5 {[%emt 0:00:08]} 8. O-O {[%emt 0:07:04]} Bg4 {[%emt 0:00:37]} 9. Nbd2 {[%emt 0:06:00]} Nb6 {[%emt 0:00:11]} 10. h3 {[%emt 0:12:54]} Nxc4 {[%emt 0:31:10]} 11. hxg4 {[%emt 0:00:58]} Nxd2 {[%emt 0:00:08]} 12. Bxd2 {[%emt 0:03:47]} Nc6 {[%emt 0:00:09]} 13. Bc3 {[%emt 0:09:17]} e6 {[%emt 0:04:52]} 14. g5 {[%emt 0:15:03]} a6 {[%emt 0:26:06]} 15. Rad1 {[%emt 0:07:11]} Qe7 {[%emt 0:00:08]} 16. Qe4 {[%emt 0:01:23]} Rfd8 {[%emt 0:00:31]} 17. a3 {[%emt 0:13:24]} Rxd1 {[%emt 0:01:02]} 18. Rxd1 {[%emt 0:00:01]} Rd8 {[%emt 0:00:14]} 19. Rd3 {[%emt 0:00:24]} Rd7 {[%emt 0:06:13]} 20. a4 {[%emt 0:12:17]} Qd8 {[%emt 0:03:14]} 21. Rxd7 {[%emt 0:00:02]} Qxd7 {[%emt 0:00:11]} 22. Qe2 {[%emt 0:00:02]} Qd5 {[%emt 0:05:33]} 23. b3 {[%emt 0:00:02]} Bf8 {[%emt 0:09:19]} 24. Bb2 {[%emt 0:02:05]} Be7 {[%emt 0:00:06]} 25. Kf1 {[%emt 0:01:25]} Qd8 {[%emt 0:00:23]} 26. Bc1 {[%emt 0:00:22]} Nd4 {[%emt 0:01:53]} 27. Qd3 {[%emt 0:04:22]} Nxf3 {[%emt 0:00:24]} 28. Qxd8+ {[%emt 0:00:02]} Bxd8 {[%emt 0:00:10]} 29. gxf3 {[%emt 0:00:01]} Kf8 {[%emt 0:03:20]} 30. Ke2 {[%emt 0:00:08]} Ke8 {[%emt 0:00:07]} 31. Kd3 {[%emt 0:00:04]} Kd7 {[%emt 0:00:05]} 32. c4 {[%emt 0:01:28]} Be7 {[%emt 0:00:20]} 33. Be3 {[%emt 0:03:01]} Kc6 {[%emt 0:00:11]} 34. Kc3 {[%emt 0:00:54]} b5 {[%emt 0:01:51]} 35. axb5+ {[%emt 0:00:30]} axb5 {[%emt 0:00:09]} 36. b4 {[%emt 0:00:31]} Bf8 {[%emt 0:00:36]} 37. Kb3 {[%emt 0:00:55]} Bg7 {[%emt 0:00:13]} 38. Bf4 {[%emt 0:00:28]} Kb6 {[%emt 0:00:28]} 39. Be3+ {[%emt 0:00:20]} Kb7 {[%emt 0:00:26]} 40. Bf4 {[%emt 0:00:50]} Kc6 {[%emt 0:00:21]} 41. Kc3 {[%emt 0:30:25]} Bf8 {[%emt 0:31:28]} 42. Be3 {[%emt 0:00:00]} Be7 {[%emt 0:00:00]} 43. Kb3 {[%emt 0:00:00]} Bf8 {[%emt 0:00:00]} 44. Kc3 {[%emt 0:00:00]} Bg7 {[%emt 0:00:00]} 45. Bf4 {[%emt 0:00:00]} Kb6 {[%emt 0:00:00]} 46. Be3+ {[%emt 0:00:00]} Ka6 {[%emt 0:00:00]} 47. Bf4 {[%emt 0:00:00]} Bf8 {[%emt 0:00:00]} 48. Be3 {[%emt 0:00:00]} Be7 {[%emt 0:00:00]} 49. Kb3 {[%emt 0:00:00]} c6 {[%emt 0:00:00]} 50. Kc3 {[%emt 0:00:00]} Kb7 {[%emt 0:00:00]} 51. c5 {[%emt 0:00:00]} Kc7 {[%emt 0:00:00]} 1/2-1/2

[Event "SWE-ch 2018"]
[Site "Ronneby"]
[Date "2018.07.03"]
[Round "4"]
[White "Von Bahr, Oskar"]
[Black "Hector, Jonny"]
[Result "0-1"]
[ECO "C56"]
[WhiteElo "2434"]
[BlackElo "2499"]
[Annotator "ChessBase"]
[PlyCount "110"]
[EventDate "2018.06.30"]
[EventType "tourn"]
[EventCountry "SWE"]
[SourceTitle "playchess.com"]
[Source "ChessBase"]
[SourceQuality "1"]
[TimeControl "40/5400+30:1800+30"]

1. e4 {[%emt 0:00:00]} e5 {[%emt 0:00:00]} 2. Nf3 {[%emt 0:00:00]} Nc6 {[%emt 0:00:00]} 3. Bc4 {[%emt 0:00:00]} Nf6 {[%emt 0:00:10]} 4. d4 {[%emt 0:00:12]} exd4 {[%emt 0:00:44]} 5. e5 {[%emt 0:00:11]} Ng4 {[%emt 0:00:52]} 6. O-O {[%emt 0:00:31]} d6 {[%emt 0:01:17]} 7. exd6 {[%emt 0:00:30]} Qxd6 {[%emt 0:00:19]} 8. h3 {[%emt 0:02:01]} Nh6 {[%emt 0:14:04]} 9. Re1+ {[%emt 0:01:52]} Be7 {[%emt 0:04:15]} 10. b3 {[%emt 0:05:39]} Nf5 {[%emt 0:03:48]} 11. Ba3 {[%emt 0:22:31]} Qf6 {[%emt 0:03:17]} 12. Nbd2 {[%emt 0:04:08]} O-O {[%emt 0:04:29]} 13. Ne4 {[%emt 0:03:49]} Qg6 {[%emt 0:00:25]} 14. Bxe7 {[%emt 0:00:59]} Nfxe7 {[%emt 0:00:32]} 15. Neg5 {[%emt 0:01:58]} Qf6 {[%emt 0:15:34]} 16. Ne4 {[%emt 0:07:38]} Qh6 {[%emt 0:09:09]} 17. Nxd4 {[%emt 0:07:20]} Ne5 {[%emt 0:00:27]} 18. Qe2 {[%emt 0:06:51]} N7g6 {[%emt 0:01:19]} 19. Ng3 {[%emt 0:02:51]} Bd7 {[%emt 0:02:56]} 20. Bd3 {[%emt 0:04:00]} Nxd3 {[%emt 0:11:11]} 21. Qxd3 {[%emt 0:01:58]} Rad8 {[%emt 0:00:11]} 22. Rad1 {[%emt 0:03:54]} c5 {[%emt 0:03:12]} 23. Ndf5 {[%emt 0:04:18]} Qg5 {[%emt 0:01:09]} 24. Qe3 {[%emt 0:03:16]} Qxe3 {[%emt 0:01:24]} 25. Rxe3 {[%emt 0:02:15]} Bxf5 {[%emt 0:01:31]} 26. Rxd8 {[%emt 0:00:04]} Rxd8 {[%emt 0:00:14]} 27. Nxf5 {[%emt 0:00:03]} Rd1+ {[%emt 0:00:41]} 28. Kh2 {[%emt 0:00:06]} Kf8 {[%emt 0:00:11]} 29. Rc3 {[%emt 0:01:52]} Rd5 {[%emt 0:01:29]} 30. Ne3 {[%emt 0:03:09]} Re5 {[%emt 0:00:46]} 31. Kg3 {[%emt 0:01:36]} b6 {[%emt 0:00:42]} 32. Rd3 {[%emt 0:01:53]} Rg5+ {[%emt 0:03:19]} 33. Ng4 {[%emt 0:03:51]} h5 {[%emt 0:01:50]} 34. f4 {[%emt 0:00:07]} Rf5 {[%emt 0:03:16]} 35. Ne3 {[%emt 0:00:14]} h4+ {[%emt 0:05:09]} 36. Kh2 {[%emt 0:00:16]} Rxf4 {[%emt 0:00:13]} 37. Rd8+ {[%emt 0:00:09]} Ke7 {[%emt 0:00:22]} 38. Ra8 {[%emt 0:00:25]} Re4 {[%emt 0:00:49]} 39. Rxa7+ {[%emt 0:03:02]} Ke6 {[%emt 0:00:50]} 40. Nc4 {[%emt 0:01:37]} Re2 {[%emt 0:02:23]} 41. Ra6 {[%emt 0:32:32]} Nf4 {[%emt 0:30:35]} 42. Rxb6+ {[%emt 0:00:07]} Kf5 {[%emt 0:05:09]} 43. Nd6+ {[%emt 0:00:00]} Kg6 {[%emt 0:00:00]} 44. a4 {[%emt 0:00:00]} Rxg2+ {[%emt 0:00:00]} 45. Kh1 {[%emt 0:00:00]} Rxc2 {[%emt 0:00:00]} 46. a5 {[%emt 0:00:00]} Ra2 {[%emt 0:00:00]} 47. a6 {[%emt 0:00:00]} Nxh3 {[%emt 0:00:00]} 48. Ne4+ {[%emt 0:00:00]} Kh5 {[%emt 0:00:00]} 49. Nc3 {[%emt 0:00:00]} Ra1+ {[%emt 0:00:00]} 50. Kh2 {[%emt 0:00:08]} Kg4 {[%emt 0:00:00]} 51. b4 {[%emt 0:03:02]} Ng5 {[%emt 0:00:00]} 52. bxc5 {[%emt 0:00:05]} Nf3+ {[%emt 0:00:00]} 53. Kg2 {[%emt 0:00:03]} h3+ {[%emt 0:00:00]} 54. Kf2 {[%emt 0:00:03]} h2 {[%emt 0:00:00]} 55. Rb4+ {[%emt 0:00:20]} Kh3 {[%emt 0:01:11]} 0-1

[Event "SWE-ch 2018"]
[Site "Ronneby"]
[Date "2018.07.04"]
[Round "5"]
[White "Hillarp Persson, Tiger"]
[Black "Blomqvist, Erik"]
[Result "1/2-1/2"]
[ECO "A04"]
[WhiteElo "2534"]
[BlackElo "2505"]
[Annotator "ChessBase"]
[PlyCount "54"]
[EventDate "2018.06.30"]
[EventType "tourn"]
[EventCountry "SWE"]
[SourceTitle "playchess.com"]
[Source "ChessBase"]
[SourceQuality "1"]
[TimeControl "40/5400+30:1800+30"]

1. Nf3 {[%emt 0:00:00]} c5 {[%emt 0:00:30]} 2. c4 {[%emt 0:00:03]} Nf6 {[%emt 0:00:09]} 3. b3 {[%emt 0:01:08]} g6 {[%emt 0:00:59]} 4. Bb2 {[%emt 0:01:05]} Bg7 {[%emt 0:00:43]} 5. g3 {[%emt 0:00:25]} b6 {[%emt 0:00:08]} 6. Bg2 {[%emt 0:00:07]} Bb7 {[%emt 0:00:04]} 7. O-O {[%emt 0:00:44]} O-O {[%emt 0:00:10]} 8. Nc3 {[%emt 0:04:57]} Na6 {[%emt 0:00:53]} 9. a3 {[%emt 0:10:19]} d5 {[%emt 0:02:31]} 10. Nxd5 {[%emt 0:00:19]} Nxd5 {[%emt 0:00:07]} 11. Bxg7 {[%emt 0:00:06]} Kxg7 {[%emt 0:00:11]} 12. cxd5 {[%emt 0:00:08]} Qxd5 {[%emt 0:00:28]} 13. d4 {[%emt 0:05:30]} Rfd8 {[%emt 0:07:11]} 14. e4 Qd6 {[%emt 0:16:46]} 15. d5 {[%emt 0:20:27]} e6 {[%emt 0:01:44]} 16. dxe6 {[%emt 0:10:43]} Qxe6 {[%emt 0:01:16]} 17. Qb1 {[%emt 0:03:56]} Qxe4 {[%emt 0:18:48]} 18. Qb2+ {[%emt 0:00:40]} Kg8 {[%emt 0:00:05]} 19. Rfe1 {[%emt 0:00:15]} Qf5 {[%emt 0:05:15]} 20. Nh4 {[%emt 0:02:31]} Qd7 {[%emt 0:03:00]} 21. Bxb7 {[%emt 0:01:36]} Qxb7 {[%emt 0:00:04]} 22. Qf6 {[%emt 0:00:22]} Re8 {[%emt 0:04:43]} 23. Nf5 {[%emt 0:05:19]} gxf5 {[%emt 0:00:25]} 24. Qg5+ {[%emt 0:00:07]} Kh8 {[%emt 0:00:36]} 25. Qf6+ {[%emt 0:00:06]} Kg8 {[%emt 0:00:05]} 26. Qg5+ {[%emt 0:00:05]} Kh8 {[%emt 0:00:04]} 27. Qf6+ {[%emt 0:00:06]} Kg8 {[%emt 0:00:03]} 1/2-1/2

[Event "SWE-ch 2018"]
[Site "Ronneby"]
[Date "2018.07.04"]
[Round "5"]
[White "Hector, Jonny"]
[Black "Tikkanen, Hans"]
[Result "0-1"]
[ECO "B12"]
[WhiteElo "2499"]
[BlackElo "2495"]
[Annotator "RC"]
[PlyCount "90"]
[EventDate "2018.06.30"]
[EventType "tourn"]
[EventCountry "SWE"]
[SourceTitle "playchess.com"]
[Source "ChessBase"]
[SourceQuality "1"]
[TimeControl "40/5400+30:1800+30"]

1. e4 {[%emt 0:00:00]} c6 {[%emt 0:00:00]} 2. d4 {[%emt 0:00:00]} d5 {[%emt 0:00:00]} 3. e5 {[%emt 0:00:13]} c5 {[%emt 0:00:00]} 4. dxc5 {[%emt 0:00:16]} e6 {[%emt 0:00:00]} 5. a3 {[%emt 0:00:22]} Bxc5 {[%emt 0:00:00]} 6. Nf3 {[%emt 0:00:41]} Ne7 {[%emt 0:00:14]} 7. b4 {[%emt 0:04:05]} Bb6 {[%emt 0:00:09]} 8. Bd3 {[%emt 0:00:24]} a5 {[%emt 0:08:00]} 9. b5 {[%emt 0:01:42]} Nd7 {[%emt 0:00:51]} 10. Bb2 {[%emt 0:04:40]} Ng6 {[%emt 0:06:09]} 11. O-O {[%emt 0:02:26]} Nc5 {[%emt 0:08:22]} 12. a4 {[%emt 0:03:41]} O-O {[%emt 0:05:57]} 13. Nbd2 {[%emt 0:04:44]} Nxd3 {[%emt 0:38:25]} 14. cxd3 {[%emt 0:01:24]} f6 {[%emt 0:00:04]} 15. exf6 {[%emt 0:10:12]} gxf6 {[%emt 0:00:02]} 16. d4 {[%emt 0:01:03]} Bc7 {[%emt 0:04:02]} 17. Re1 {[%emt 0:05:05]} b6 {[%emt 0:03:18]} 18. Ra3 {[%emt 0:06:10]} Ra7 {[%emt 0:00:28]} 19. g3 {[%emt 0:01:35]} Bb8 {[%emt 0:00:47]} 20. Rae3 {[%emt 0:01:39]} Re8 {[%emt 0:02:52]} 21. Nb3 {[%emt 0:03:00]} Rg7 {[%emt 0:04:44]} 22. Nc1 {[%emt 0:02:50]} h5 {[%emt 0:00:23]} 23. h4 {[%emt 0:06:34]} Ne7 {[%emt 0:04:04]} 24. Nh2 {[%emt 0:07:49]} Nf5 {[%emt 0:01:54]} 25. Rd3 {[%emt 0:02:03]} Nxh4 {[%emt 0:03:07]} 26. Qxh5 {[%emt 0:01:03]} Rh7 {[%emt 0:00:55]} 27. Qd1 {[%emt 0:05:49]} Kf7 {[%emt 0:01:55]} 28. Nf3 {[%emt 0:03:28]} Nf5 {[%emt 0:01:48]} 29. Ne2 {[%emt 0:05:47]} Reh8 {[%emt 0:00:41]} 30. Bc1 {[%emt 0:01:30]} Qg8 {[%emt 0:00:48]} 31. Kf1 {[%emt 0:03:50]} Rh1+ {[%emt 0:01:20]} 32. Neg1 {[%emt 0:00:40]} Bxg3 {[%emt 0:01:10]} 33. Ng5+ {[%emt 0:02:26]} fxg5 {[%emt 0:00:38]} 34. fxg3 {[%emt 0:00:44]} Qh7 {[%emt 0:00:13]} 35. Qf3 {[%emt 0:05:30]} g4 {[%emt 0:00:18]} 36. Qf2 {[%emt 0:00:24]} Ke8 {[%emt 0:02:44]} 37. Re2 {[%emt 0:03:20]} Bd7 {[%emt 0:01:10]} 38. Ke1 {[%emt 0:01:07]} Nd6 {[%emt 0:00:46]} 39. Rde3 {[%emt 0:00:29]} Ne4 {[%emt 0:00:39]} 40. Qg2 {[%emt 0:00:29]} Qe7 {[%emt 0:00:30]} 41. Ba3 {[%emt 0:04:52]} Qf6 {[%emt 0:12:48]} 42. Bb2 {[%emt 0:02:31]} Qf5 {[%emt 0:00:46]} 43. Bc1 {[%emt 0:04:33]} R8h7 {[%emt 0:03:33]} 44. Qf1 {[%emt 0:01:45]} Rf7 {[%emt 0:01:04]} 45. Qg2 {[%emt 0:00:41]} Rh2 {[%emt 0:00:18]} 0-1

[Event "SWE-ch 2018"]
[Site "Ronneby"]
[Date "2018.07.04"]
[Round "5"]
[White "Cramling, Pia"]
[Black "Von Bahr, Oskar"]
[Result "1/2-1/2"]
[ECO "A38"]
[WhiteElo "2452"]
[BlackElo "2434"]
[Annotator "ChessBase"]
[PlyCount "108"]
[EventDate "2018.06.30"]
[EventType "tourn"]
[EventCountry "SWE"]
[SourceTitle "playchess.com"]
[Source "ChessBase"]
[SourceQuality "1"]
[TimeControl "40/5400+30:1800+30"]

1. Nf3 {[%emt 0:00:00]} Nf6 {[%emt 0:00:00]} 2. c4 {[%emt 0:00:00]} c5 {[%emt 0:00:00]} 3. Nc3 {[%emt 0:00:07]} Nc6 {[%emt 0:00:00]} 4. g3 {[%emt 0:00:39]} g6 {[%emt 0:00:25]} 5. Bg2 {[%emt 0:00:08]} Bg7 {[%emt 0:00:04]} 6. d4 {[%emt 0:01:12]} cxd4 {[%emt 0:00:09]} 7. Nxd4 {[%emt 0:00:03]} O-O {[%emt 0:00:15]} 8. O-O {[%emt 0:00:34]} Qa5 {[%emt 0:01:25]} 9. Nb3 {[%emt 0:07:31]} Qh5 {[%emt 0:00:12]} 10. e4 {[%emt 0:02:39]} Qxd1 {[%emt 0:01:02]} 11. Rxd1 {[%emt 0:00:05]} d6 {[%emt 0:02:25]} 12. c5 {[%emt 0:06:05]} dxc5 {[%emt 0:18:01]} 13. Nxc5 {[%emt 0:00:14]} Bg4 {[%emt 0:08:36]} 14. f3 {[%emt 0:01:13]} Bc8 {[%emt 0:00:36]} 15. Be3 {[%emt 0:03:54]} b6 {[%emt 0:02:52]} 16. Nd3 {[%emt 0:02:47]} e5 {[%emt 0:08:16]} 17. Rac1 {[%emt 0:10:23]} Bb7 {[%emt 0:04:47]} 18. Nb5 {[%emt 0:07:35]} Rfd8 {[%emt 0:01:47]} 19. Nf2 {[%emt 0:06:33]} Ne8 {[%emt 0:01:21]} 20. a3 {[%emt 0:05:21]} a6 {[%emt 0:10:12]} 21. Nc3 {[%emt 0:00:26]} Nd4 {[%emt 0:00:44]} 22. Bxd4 {[%emt 0:01:04]} exd4 {[%emt 0:03:12]} 23. Na4 {[%emt 0:00:49]} Rab8 {[%emt 0:01:45]} 24. f4 {[%emt 0:06:39]} Nd6 {[%emt 0:04:10]} 25. e5 {[%emt 0:05:44]} Nf5 {[%emt 0:05:51]} 26. Bxb7 {[%emt 0:00:07]} Rxb7 {[%emt 0:00:04]} 27. Nd3 {[%emt 0:03:31]} f6 {[%emt 0:03:09]} 28. exf6 {[%emt 0:00:36]} Bxf6 {[%emt 0:00:06]} 29. Rc6 {[%emt 0:00:11]} Rd6 {[%emt 0:00:45]} 30. Rdc1 {[%emt 0:02:06]} Be7 {[%emt 0:06:57]} 31. Kf2 {[%emt 0:01:20]} a5 {[%emt 0:05:57]} 32. g4 {[%emt 0:03:15]} Ne3 {[%emt 0:01:25]} 33. Kf3 {[%emt 0:00:15]} Kf7 {[%emt 0:01:15]} 34. Ne5+ {[%emt 0:04:41]} Ke8 {[%emt 0:04:52]} 35. Ke4 {[%emt 0:04:23]} b5 {[%emt 0:01:21]} 36. Rxd6 {[%emt 0:03:37]} Bxd6 {[%emt 0:00:05]} 37. Rc8+ {[%emt 0:00:19]} Ke7 {[%emt 0:00:11]} 38. Nc5 {[%emt 0:01:31]} Rc7 {[%emt 0:02:16]} 39. Rxc7+ {[%emt 0:08:00]} Bxc7 {[%emt 0:00:01]} 40. Ncd3 {[%emt 0:00:12]} Bb6 {[%emt 0:01:44]} 41. h3 {[%emt 0:31:17]} Kd6 {[%emt 0:09:33]} 42. Nf7+ {[%emt 0:00:00]} Ke7 {[%emt 0:00:20]} 43. Ng5 {[%emt 0:00:00]} h5 {[%emt 0:03:31]} 44. gxh5 {[%emt 0:00:00]} gxh5 {[%emt 0:00:04]} 45. Nf3 {[%emt 0:00:00]} Kd6 {[%emt 0:01:19]} 46. Nfe5 {[%emt 0:00:00]} a4 {[%emt 0:01:49]} 47. f5 {[%emt 0:00:00]} Nc4 {[%emt 0:11:12]} 48. f6 {[%emt 0:00:00]} Nxe5 {[%emt 0:00:16]} 49. Nxe5 {[%emt 0:00:00]} Ke6 {[%emt 0:01:24]} 50. f7 {[%emt 0:00:00]} Bc5 {[%emt 0:00:10]} 51. Nd3 {[%emt 0:00:00]} Bf8 {[%emt 0:01:00]} 52. Kxd4 {[%emt 0:00:48]} h4 {[%emt 0:01:05]} 53. Ke4 {[%emt 0:04:47]} Bh6 {[%emt 0:01:12]} 54. Kd4 {[%emt 0:01:50]} Bf8 {[%emt 0:00:04]} 1/2-1/2

[Event "SWE-ch 2018"]
[Site "Ronneby"]
[Date "2018.07.04"]
[Round "5"]
[White "Seo, Jung Min"]
[Black "Westerberg, Jonathan"]
[Result "0-1"]
[ECO "D02"]
[WhiteElo "2347"]
[BlackElo "2517"]
[Annotator "ChessBase"]
[PlyCount "76"]
[EventDate "2018.06.30"]
[EventType "tourn"]
[EventCountry "SWE"]
[SourceTitle "playchess.com"]
[Source "ChessBase"]
[SourceQuality "1"]
[TimeControl "40/5400+30:1800+30"]

1. d4 {[%emt 0:00:00]} d5 {[%emt 0:00:37]} 2. Nf3 {[%emt 0:00:00]} e6 {[%emt 0:01:00]} 3. g3 {[%emt 0:00:08]} g6 {[%emt 0:00:51]} 4. Bg2 {[%emt 0:00:23]} Bg7 {[%emt 0:00:30]} 5. O-O {[%emt 0:00:47]} Ne7 {[%emt 0:00:53]} 6. c4 {[%emt 0:02:07]} O-O {[%emt 0:00:31]} 7. Nbd2 {[%emt 0:02:30]} Nbc6 {[%emt 0:00:29]} 8. e3 {[%emt 0:01:49]} a5 {[%emt 0:02:15]} 9. b3 {[%emt 0:14:41]} b6 {[%emt 0:18:15]} 10. Re1 {[%emt 0:15:14]} Ba6 {[%emt 0:04:59]} 11. cxd5 {[%emt 0:05:30]} exd5 {[%emt 0:01:35]} 12. a3 {[%emt 0:00:22]} Nf5 {[%emt 0:06:04]} 13. Bb2 {[%emt 0:04:21]} Nce7 {[%emt 0:08:21]} 14. Qc2 {[%emt 0:04:11]} Rc8 {[%emt 0:07:05]} 15. Rac1 {[%emt 0:01:28]} c6 {[%emt 0:10:15]} 16. Nb1 {[%emt 0:07:32]} c5 {[%emt 0:03:27]} 17. dxc5 {[%emt 0:02:23]} bxc5 {[%emt 0:00:34]} 18. Bxg7 {[%emt 0:02:29]} Nxg7 {[%emt 0:00:02]} 19. Rcd1 {[%emt 0:01:15]} Qc7 {[%emt 0:03:28]} 20. Nc3 {[%emt 0:01:47]} Rfd8 {[%emt 0:00:40]} 21. Rc1 {[%emt 0:03:08]} Ne6 {[%emt 0:08:16]} 22. Na4 {[%emt 0:01:18]} Bb5 {[%emt 0:01:57]} 23. Nc3 {[%emt 0:00:15]} Bc6 {[%emt 0:00:58]} 24. Qb2 {[%emt 0:02:38]} Qb8 {[%emt 0:00:34]} 25. Ne2 {[%emt 0:01:12]} d4 {[%emt 0:02:14]} 26. exd4 {[%emt 0:00:49]} Bxf3 {[%emt 0:00:41]} 27. Bxf3 {[%emt 0:00:05]} cxd4 {[%emt 0:00:07]} 28. Rxc8 {[%emt 0:02:21]} Qxc8 {[%emt 0:00:02]} 29. Rd1 {[%emt 0:01:14]} d3 {[%emt 0:04:47]} 30. Nc3 {[%emt 0:04:51]} Ng5 {[%emt 0:02:37]} 31. Bg2 {[%emt 0:08:47]} Qg4 {[%emt 0:00:50]} 32. Re1 {[%emt 0:01:12]} d2 {[%emt 0:02:56]} 33. Rxe7 {[%emt 0:06:37]} d1=Q+ {[%emt 0:00:09]} 34. Nxd1 {[%emt 0:00:01]} Rxd1+ {[%emt 0:00:10]} 35. Bf1 {[%emt 0:00:01]} Nh3+ {[%emt 0:00:16]} 36. Kg2 {[%emt 0:00:11]} Nf4+ {[%emt 0:00:05]} 37. Kg1 {[%emt 0:00:12]} Rxf1+ {[%emt 0:00:05]} 38. Kxf1 {[%emt 0:00:07]} Qh3+ {[%emt 0:00:01]} 0-1

[Event "SWE-ch 2018"]
[Site "Ronneby"]
[Date "2018.07.05"]
[Round "6"]
[White "Grandelius, Nils"]
[Black "Seo, Jung Min"]
[Result "1/2-1/2"]
[ECO "C43"]
[WhiteElo "2668"]
[BlackElo "2347"]
[Annotator "ChessBase"]
[PlyCount "81"]
[EventDate "2018.06.30"]
[EventType "tourn"]
[EventCountry "SWE"]
[SourceTitle "playchess.com"]
[Source "ChessBase"]
[SourceQuality "1"]
[TimeControl "40/5400+30:1800+30"]

1. e4 {[%emt 0:00:00]} e5 {[%emt 0:00:00]} 2. Nf3 {[%emt 0:00:12]} Nf6 {[%emt 0:00:00]} 3. d4 {[%emt 0:09:33]} Nxe4 {[%emt 0:00:03]} 4. Bd3 {[%emt 0:02:38]} d5 {[%emt 0:00:09]} 5. Nxe5 {[%emt 0:00:05]} Nd7 {[%emt 0:00:49]} 6. Nxd7 {[%emt 0:00:33]} Bxd7 {[%emt 0:01:28]} 7. Nc3 {[%emt 0:00:05]} Nxc3 {[%emt 0:14:47]} 8. bxc3 {[%emt 0:02:47]} Bd6 {[%emt 0:01:01]} 9. O-O {[%emt 0:12:04]} Qh4 {[%emt 0:04:34]} 10. g3 {[%emt 0:01:15]} Qe7 {[%emt 0:03:13]} 11. c4 {[%emt 0:14:26]} dxc4 {[%emt 0:02:31]} 12. Re1 {[%emt 0:00:50]} Be6 {[%emt 0:21:14]} 13. Bxc4 {[%emt 0:00:33]} O-O-O {[%emt 0:09:26]} 14. Bxe6+ {[%emt 0:01:40]} fxe6 {[%emt 0:00:10]} 15. Qg4 {[%emt 0:00:45]} Qd7 {[%emt 0:05:44]} 16. Bg5 {[%emt 0:06:23]} Rde8 {[%emt 0:01:02]} 17. Rab1 {[%emt 0:00:15]} h6 {[%emt 0:06:07]} 18. Be3 {[%emt 0:04:55]} h5 {[%emt 0:05:20]} 19. Qe4 {[%emt 0:02:57]} c6 {[%emt 0:00:40]} 20. Rb3 {[%emt 0:02:39]} h4 {[%emt 0:00:57]} 21. Reb1 {[%emt 0:00:44]} hxg3 {[%emt 0:00:11]} 22. hxg3 {[%emt 0:00:09]} b6 {[%emt 0:02:12]} 23. c4 {[%emt 0:05:23]} Bc7 {[%emt 0:01:41]} 24. c5 {[%emt 0:14:17]} Qd5 {[%emt 0:01:32]} 25. Qxd5 {[%emt 0:00:07]} exd5 {[%emt 0:00:07]} 26. cxb6 {[%emt 0:00:45]} axb6 {[%emt 0:00:46]} 27. Kg2 {[%emt 0:02:01]} Kd7 {[%emt 0:00:50]} 28. Bf4 {[%emt 0:03:01]} Bxf4 {[%emt 0:03:10]} 29. gxf4 {[%emt 0:00:01]} b5 {[%emt 0:03:03]} 30. Rg3 {[%emt 0:00:08]} Re7 {[%emt 0:01:10]} 31. a4 {[%emt 0:00:38]} Rb8 {[%emt 0:01:10]} 32. Rgb3 {[%emt 0:06:51]} Re4 {[%emt 0:00:21]} 33. axb5 {[%emt 0:00:04]} Rxb5 {[%emt 0:00:19]} 34. Rxb5 {[%emt 0:00:05]} cxb5 {[%emt 0:00:05]} 35. Rxb5 {[%emt 0:00:04]} Rxd4 {[%emt 0:00:07]} 36. Rb7+ {[%emt 0:00:11]} Ke6 {[%emt 0:00:23]} 37. Rxg7 {[%emt 0:00:07]} Rxf4 {[%emt 0:00:02]} 38. Kf1 {[%emt 0:00:08]} Ra4 {[%emt 0:00:35]} 39. Ke2 {[%emt 0:00:22]} Ra3 {[%emt 0:00:09]} 40. Rg5 {[%emt 0:00:13]} Rb3 {[%emt 0:00:06]} 41. Rh5 {[%emt 0:30:04] Ke5} 1/2-1/2

[Event "SWE-ch 2018"]
[Site "Ronneby"]
[Date "2018.07.05"]
[Round "6"]
[White "Tikkanen, Hans"]
[Black "Cramling, Pia"]
[Result "1/2-1/2"]
[ECO "D02"]
[WhiteElo "2495"]
[BlackElo "2452"]
[Annotator "ChessBase"]
[PlyCount "42"]
[EventDate "2018.06.30"]
[EventType "tourn"]
[EventCountry "SWE"]
[SourceTitle "playchess.com"]
[Source "ChessBase"]
[SourceQuality "1"]
[TimeControl "40/5400+30:1800+30"]

1. d4 {[%emt 0:00:00]} Nf6 {[%emt 0:00:00]} 2. Nf3 {[%emt 0:00:00]} d5 {[%emt 0:01:10]} 3. Bf4 {[%emt 0:00:01]} c5 {[%emt 0:00:17]} 4. e3 {[%emt 0:00:06]} Nc6 {[%emt 0:00:06]} 5. Nbd2 {[%emt 0:00:24]} cxd4 {[%emt 0:12:48]} 6. exd4 {[%emt 0:00:18]} g6 {[%emt 0:00:20]} 7. h3 {[%emt 0:09:04]} Bg7 {[%emt 0:00:51]} 8. c3 {[%emt 0:02:15]} Bf5 {[%emt 0:04:58]} 9. Be2 {[%emt 0:26:53]} O-O {[%emt 0:03:56]} 10. O-O {[%emt 0:00:08]} h6 {[%emt 0:07:44]} 11. Ne5 {[%emt 0:14:01]} Nxe5 {[%emt 0:06:21]} 12. Bxe5 {[%emt 0:00:53]} Ne4 {[%emt 0:04:45]} 13. Bxg7 {[%emt 0:01:16]} Kxg7 {[%emt 0:00:05]} 14. Nxe4 {[%emt 0:14:27]} Bxe4 {[%emt 0:00:16]} 15. f3 {[%emt 0:10:48]} Bf5 {[%emt 0:00:15]} 16. g4 {[%emt 0:00:03]} Qd6 {[%emt 0:00:40]} 17. gxf5 {[%emt 0:11:06]} Qg3+ {[%emt 0:00:10]} 18. Kh1 {[%emt 0:00:01]} Qxh3+ {[%emt 0:00:08]} 19. Kg1 {[%emt 0:00:02]} Qg3+ {[%emt 0:00:07]} 20. Kh1 {[%emt 0:00:01]} Qh3+ {[%emt 0:00:05]} 21. Kg1 {[%emt 0:00:04]} Qg3+ 1/2-1/2